[Event "Austrian Championship 2022"]
[Site "Vienna"]
[Date "2022.08.12"]
[Round "1.8"]
[White "Kienboeck, Benjamin"]
[Black "Menezes, Christoph"]
[Result "0-1"]
[ECO "B90"]
[WhiteElo "2151"]
[BlackElo "2417"]
[Annotator "TA"]
[PlyCount "168"]
[EventDate "2022.08.12"]
[EventType "swiss"]
[EventCountry "AUT"]
[SourceTitle "playchess.com"]
[Source "ChessBase"]
[SourceQuality "1"]
[TimeControl "40/5400+30:1800+30"]

{[%evp 24,168,34,0,9,4,0,-16,0,-42,-47,-47,-41,-58,-43,-81,0,-26,-26,-27,-27,-58,-67,-67,-38,-42,-41,-44,-31,-33,-49,-33,-30,-16,-20,-45,-19,-46,-46,-58,-58,-64,-66,-89,-80,-87,-118,-110,-83,-98,-29,-36,0,-41,-29,-46,-36,-40,-36,-36,-36,-35,-39,-40,-43,-47,-40,-35,-43,-66,-69,-54,-58,-213,-209,-301,-307,-455,-230,-430,-225,-551,-545,-776,-775,-893,-845,-989,-983,-1720,-4672,-29947,-29940,-12796,-6384,-5206,-5102,-29959,-29955,-29965,-29966,-29964,-29967,-29968,-29971,-29972,-29973,-29983,-29980,-29980,-29978,-29978,-29979,-29979,0,-29989,-29981,-29981,-29982,-29982,-29981,-29981,-29981,-29982,-29982,-29984,-29985,-29985,-29986,-29993,-29994,-29994,-29988,-29990,-29991,-29991,-29991,-29991,-29991,-29992,-29986,-29992,-29993,-29994,-29993,-29994,-29994]} 1. e4 {[%emt 0:00:05]} c5 {[%emt 0:00:10]} 2. Nf3 {[%emt 0:00:09]} d6 {[%emt 0:00:21]} 3. d4 {[%emt 0:00:10]} cxd4 {[%emt 0:00:11]} 4. Nxd4 {[%emt 0:00:10]} Nf6 {[%emt 0:00:13]} 5. Nc3 {[%emt 0:00:11]} a6 {[%emt 0:00:09]} 6. f3 {[%emt 0:00:14]} e5 {[%emt 0:01:23]} 7. Nb3 {[%emt 0:00:12]} Be6 {[%emt 0:00:45]} 8. Be3 {[%emt 0:00:16]} h5 {[%emt 0:00:42]} 9. Qd2 {[%emt 0:02:13]} Be7 {[%emt 0:02:01]} 10. O-O-O {[%emt 0:03:16]} Nbd7 {[%emt 0:01:04]} 11. Nd5 {[%emt 0:03:00]} Bxd5 {[%emt 0:02:07]} 12. exd5 {[%emt 0:00:11]} Qc7 {[%emt 0:03:27]} 13. Kb1 {[%emt 0:02:28]} Nb6 {[%emt 0:03:09] B90: Sicilian Najdorf: Unusual White 6th moves, 6 Be3 Ng4 and 6 Be3 e5.} 14. Bxb6 {[%emt 0:21:01] was the old line (14.Qa5).} Qxb6 {[%emt 0:00:04]} 15. Qa5 {[%emt 0:00:17]} Bd8 {[%emt 0:07:56][%cal Be7d8,Bd8b6,Bb6e3,Be3f4][%mdl 32] The position is equal.} 16. Qxb6 {[%emt 0:00:46]} Bxb6 {[%emt 0:00:05] [#]} 17. Nd2 $146 {[%emt 0:15:52][%cal Bb3d2,Bd2e4,Be4f2][%mdl 32]} ({Predecessor:} 17. c4 a5 18. Bd3 a4 19. Nd2 Nd7 20. Ne4 Ke7 21. g4 hxg4 22. fxg4 Rh3 23. Ng5 {1-0 (52) Mathews,C (1999)-Gu,X (2263) Europe Echecs INT 2021}) 17... Ke7 {[%emt 0:00:30]} ({Resist} 17... Nxd5 18. Nc4 Bd4 19. Nxd6+ Ke7 20. Nf5+ Kf6 21. Bd3 $11 (21. Nxd4 Ne3 $11)) 18. Ne4 {[%emt 0:00:30]} Nd7 {[%emt 0:15:56]} 19. g4 {[%emt 0:14:09]} h4 {[%emt 0:10:09]} (19... hxg4 $17 20. fxg4 Rh4) 20. Bd3 {[%emt 0:11:18]} Be3 {[%emt 0:04:50]} 21. Rde1 {[%emt 0:03:53]} Bf4 {[%emt 0:03:00]} 22. Nf2 {[%emt 0:01:36]} Nc5 {[%emt 0:10:49]} 23. Re2 {[%emt 0:02:35]} h3 {[%emt 0:04:41]} 24. Ree1 {[%emt 0:05:50]} Bg5 {[%emt 0:04:40]} 25. Bf1 {[%emt 0:01:31]} Bh4 {[%emt 0:01:43]} 26. Re2 {[%emt 0:00:08]} Bxf2 {[%emt 0:00:52]} 27. Rxf2 {[%emt 0:00:02]} Nd7 {[%emt 0:03:09]} 28. Rg1 {[%emt 0:01:44]} Rh4 {[%emt 0:02:52]} 29. Rg3 {[%emt 0:01:10]} Rah8 {[%emt 0:00:44]} 30. Kc1 {[%emt 0:03:27]} b5 {[%emt 0:03:25]} 31. c3 {[%emt 0:02:50]} Nb6 {[%emt 0:02:35]} 32. Rd2 {[%emt 0:00:26]} Rc8 {[%emt 0:00:57]} 33. Kc2 {[%emt 0:02:11]} Rc5 {[%emt 0:01:22]} 34. Rxh3 {[%emt 0:01:09]} Rxh3 {[%emt 0:00:04]} 35. Bxh3 {[%emt 0:00:01]} Nxd5 $17 {[%emt 0:00:23][%mdl 4096] Endgame KRB-KRN} 36. Kb3 {[%emt 0:00:49] [#] Prevents b4.} Nb6 {[%emt 0:04:19] Against a4} ({Black should play} 36... a5 $1 $17) 37. Bf1 $11 {[%emt 0:00:51]} a5 {[%emt 0:00:42]} 38. a3 {[%emt 0:00:43]} a4+ {[%emt 0:03:25]} 39. Kb4 {[%emt 0:01:19]} Nd5+ {[%emt 0:00:13]} 40. Ka5 {[%emt 0:00:15]} b4+ {[%emt 0:00:50]} 41. Kxa4 {[%emt 0:04:24]} bxc3 {[%emt 0:00:16]} 42. bxc3 {[%emt 0:02:20]} Nxc3+ {[%emt 0:00:53]} 43. Kb4 {[%emt 0:01:55]} Nd5+ {[%emt 0:01:48]} 44. Kb3 {[%emt 0:00:54]} Ne3 {[%emt 0:01:13]} 45. Bd3 {[%emt 0:01:14]} d5 {[%emt 0:00:46]} 46. Kb4 {[%emt 0:00:47]} Kd6 {[%emt 0:00:40]} 47. a4 {[%emt 0:00:42]} d4 {[%emt 0:01:00] ...Nd5+ is the strong threat.} 48. Be4 {[%emt 0:02:44] Black keeps a firm grip on the game.} (48. Rb2 $15) 48... Rc8 $19 {[%emt 0:05:34] Threatens to win with ...Rb8+.} 49. Kb5 {[%emt 0:08:15]} (49. Bd3 {was necessary.}) 49... g6 {[%emt 0:09:16]} 50. a5 {[%emt 0:06:14]} (50. g5 {was called for.}) 50... f5 {[%emt 0:08:16]} (50... Rb8+ $142 51. Ka6 f5 52. gxf5 gxf5) 51. gxf5 $2 {[%emt 0:00:08]} (51. Bb7 {was forced.} Rc5+ 52. Kb4) 51... gxf5 {[%emt 0:00:04]} (51... Rb8+ $142 52. Ka6 gxf5) 52. Bd3 $2 {[%emt 0:02:28]} (52. Bb7 {was the crucial defense.} Rc1 53. f4 Rb1+ 54. Ka6) 52... Kd5 {[%emt 0:01:45]} 53. Kb6 {[%emt 0:01:38]} e4 {[%emt 0:01:15]} 54. fxe4+ {[%emt 0:00:24]} fxe4 {[%emt 0:00:04] Hoping for ...Nc4+.} 55. Ba6 {[%emt 0:00:35]} Nc4+ {[%emt 0:04:27]} 56. Bxc4+ {[%emt 0:01:08]} Rxc4 {[%emt 0:00:05] KR-KR} 57. Ra2 {[%emt 0:00:58]} Rc8 {[%emt 0:00:44]} ({But not} 57... Rb4+ $2 58. Kc7 Rc4+ 59. Kd7 $19) 58. a6 {[%emt 0:01:43]} e3 {[%emt 0:00:54]} (58... d3 $142 59. a7 e3) 59. Kb7 {[%emt 0:01:39]} Rh8 {[%emt 0:00:13] ( -> ...d3)} 60. a7 {[%emt 0:00:40]} d3 {[%emt 0:00:18]} 61. a8=Q {[%emt 0:00:09]} Rxa8 {[%emt 0:00:04]} 62. Rxa8 {[%emt 0:00:03] KR-KPP} e2 {[%emt 0:00:16]} 63. Re8 {[%emt 0:00:12]} d2 {[%emt 0:00:25]} 64. Rxe2 {[%emt 0:00:06]} d1=Q {[%emt 0:06:17] KQ-KR} 65. Rb2 {[%emt 0:01:17]} Qa4 {[%emt 0:00:00]} 66. h4 {[%emt 0:00:54]} Qd7+ {[%emt 0:00:00]} 67. Ka6 {[%emt 0:00:19]} Qc8+ {[%emt 0:00:00]} 68. Ka7 {[%emt 0:00:25]} Qd7+ $2 {[%emt 0:00:00]} (68... Qc3 {mates} 69. Rb5+ Kc6 70. Rb6+ Kc5 71. Kb7 Qg7+ 72. Ka6 Qd7 73. Rb2 Qd3+ 74. Kb7 Qe4+ 75. Ka7 Qd4 76. Rb6 Qxh4 77. Rb7 Qe4 78. Rc7+ Kb5 79. Rf7 Qd4+ 80. Kb8 Qd6+ 81. Ka7 Kc6 82. Rb7 Qd8 83. Rh7 Qd4+ 84. Kb8 Qe5+ 85. Ka8 Qa1+ 86. Kb8 Qb1+ 87. Ka7 Qxh7+ 88. Ka6 Qb7+ 89. Ka5 Qb5#) 69. Kb6 $2 {[%emt 0:00:14][%mdl 8192] [#]} (69. Ka6 $11) 69... Qd8+ {[%emt 0:00:00] Black mates.} 70. Ka7 {[%emt 0:00:18]} Qe7+ {[%emt 0:00:00]} 71. Rb7 {[%emt 0:00:25]} Qa3+ {[%emt 0:00:00]} 72. Kb8 {[%emt 0:00:47]} Qg3+ {[%emt 0:00:00]} 73. Rc7 {[%emt 0:00:51]} Qxh4 {[%emt 0:00:00]} 74. Rd7+ {[%emt 0:00:33]} Kc6 {[%emt 0:00:00]} 75. Rc7+ {[%emt 0:00:06]} Kd6 {[%emt 0:00:06]} 76. Kb7 {[%emt 0:00:34]} Qb4+ {[%emt 0:00:45]} 77. Kc8 {[%emt 0:00:06]} Qb5 {[%emt 0:00:17]} 78. Ra7 {[%emt 0:01:04]} Qc6+ {[%emt 0:00:44]} 79. Kb8 {[%emt 0:00:10]} Qb6+ {[%emt 0:00:34]} 80. Rb7 {[%emt 0:01:26]} Qd8+ {[%emt 0:00:27]} 81. Ka7 {[%emt 0:00:06]} Qa5+ {[%emt 0:00:28]} 82. Kb8 {[%emt 0:00:07]} Kc6 {[%emt 0:00:16]} 83. Rh7 {[%emt 0:01:17]} Qb4+ {[%emt 0:00:21]} 84. Ka8 {[%emt 0:00:32]} Qa3+ {[%emt 0:00:13] Weighted Error Value: White=0.82/Black=0.29 (precise)} 0-1

[Event "Austrian Championship 2022"]
[Site "Vienna"]
[Date "2022.08.12"]
[Round "1.8"]
[White "Hengl, Philip"]
[Black "Bauer, Thomas"]
[Result "0-1"]
[ECO "B06"]
[WhiteElo "1968"]
[BlackElo "2228"]
[Annotator "TA"]
[PlyCount "64"]
[EventDate "2022.08.12"]
[EventType "swiss"]
[EventCountry "AUT"]
[SourceTitle "playchess.com"]
[Source "ChessBase"]
[SourceQuality "1"]
[TimeControl "40/5400+30:1800+30"]

{[%evp 9,64,37,37,45,44,19,22,0,47,2,41,25,32,0,16,0,43,0,0,-42,-25,-105,-111,-109,-102,-118,-104,-132,-118,-130,-79,-55,-86,-107,-103,-168,-166,-170,-161,-157,-167,-141,-76,-579,-575,-841,-656,-1855,-1793,-2169,-2007,-1494,-399,-364,-349,-520,-502]} 1. e4 {[%emt 0:00:01]} d6 {[%emt 0:00:02]} 2. d4 {[%emt 0:00:43]} g6 {[%emt 0:00:56]} 3. Nc3 {[%emt 0:00:07]} a6 {[%emt 0:00:25]} 4. Be3 {[%emt 0:00:32]} b5 {[%emt 0:02:11]} 5. a3 {[%emt 0:01:11]} Bb7 {[%emt 0:00:02] [#]} 6. Qd2 $146 {[%emt 0:00:44] B06: Modern Defence.} ({Predecessor:} 6. h4 Nf6 7. f3 Nbd7 8. Qd2 c5 9. Nh3 cxd4 10. Bxd4 e5 11. Be3 Rc8 12. O-O-O {0-1 (40) Haring,F (2232)-Czebe,A (2465) Slovakia 2017}) 6... Nd7 {[%emt 0:00:58]} 7. h4 {[%emt 0:01:44]} h5 {[%emt 0:05:31]} 8. O-O-O {[%emt 0:03:47] The position is equal.} Bg7 {[%emt 0:05:26]} (8... Ngf6 $11) 9. Nh3 {[%emt 0:02:34]} Rc8 {[%emt 0:02:32]} 10. Ng5 {[%emt 1:24:07][%cal Oe4e5]} c5 {[%emt 0:02:18]} 11. Be2 {[%emt 0:00:00]} (11. e5 $5 {[%cal Re5e6]} cxd4 12. e6 fxe6 13. Bxd4 Bxd4 14. Qxd4 $11) 11... b4 {[%emt 0:05:33]} 12. Nb1 {[%emt 0:00:00]} Qb6 {[%emt 0:14:27]} 13. axb4 {[%emt 0:00:00]} (13. e5 $5) 13... cxb4 {[%emt 0:00:50]} 14. e5 {[%emt 0:00:00]} (14. Qd3 $5 {[%cal Re4e5]}) 14... Bd5 {[%emt 0:08:57] Prevents e6. Hoping for ...Nh6.} 15. Bd3 {[%emt 0:00:00]} (15. e6 $1 $11 fxe6 16. Qd3) 15... e6 $1 $17 {[%emt 0:06:19]} 16. Ne4 {[%emt 0:00:00]} Bxe4 {[%emt 0:01:03]} 17. Bxe4 {[%emt 0:00:00]} d5 {[%emt 0:00:02]} 18. Bd3 {[%emt 0:00:00]} Ne7 {[%emt 0:00:02]} 19. Qe2 {[%emt 0:00:00]} Nc6 {[%emt 0:02:52]} (19... Nf5 $142 $1 {[%cal Rf5d4]} 20. g3 Qxd4 21. Bxa6 (21. Bxd4 $2 {is the wrong capture.} Nxd4 22. Nd2 Nxe2+ 23. Bxe2 Nxe5 $19) 21... Qxe5 $1 22. Bxc8 Qxb2+ 23. Kd2 Bc3+ 24. Nxc3 Qxc3+ 25. Kc1 Qxc8 26. Rxd5 Qa8 27. Rxd7 Qa1+ 28. Kd2 Qc3+ 29. Kc1 Qa1+ 30. Kd2 Qc3+ 31. Kc1 Qa1+) 20. Bxa6 {[%emt 0:00:00]} Rc7 {[%emt 0:06:21]} 21. Bb5 {[%emt 0:00:00]} O-O {[%emt 0:04:47] White must now prevent ...Rfc8.} 22. Bxc6 {[%emt 0:00:00]} (22. g4 $17 {was worth a try.} Rfc8 23. Rd2) 22... Qxc6 $19 {[%emt 0:01:31]} 23. g4 {[%emt 0:00:00]} hxg4 $40 {[%emt 0:02:45][%cal Od7e5][%mdl 128] ...Nxe5! is the strong threat. Black attacks with force.} 24. h5 {[%emt 0:00:00]} Rfc8 {[%emt 0:00:01][%cal Rc6c2]} 25. c3 {[%emt 0:00:00]} Qa4 {[%emt 0:04:14]} (25... bxc3 $142 26. Nxc3 f5) 26. Qd3 $2 {[%emt 0:00:00][%mdl 8192] This costs White the game.} (26. Kd2 $17 {prevents the worst.}) 26... Qa1 {[%emt 0:07:20]} 27. Bd2 {[%emt 0:00:45]} Rb7 {[%emt 0:09:32]} 28. Qc2 {[%emt 0:02:20]} bxc3 {[%emt 0:00:22]} 29. Bxc3 {[%emt 0:00:34]} Bh6+ {[%emt 0:02:52]} 30. Rd2 {[%emt 0:00:14] [#]} Nf8 $2 {[%emt 0:00:50]} (30... Nxe5 $1 {[%cal Ob7b2][%mdl 512] ( -> ...Rxb2!)} 31. Kd1 Rxc3 32. Qxc3 Qxb1+ 33. Qc1 Qe4 34. Qc8+ Kg7 35. Qxb7 Qxh1+ 36. Kc2 Qe4+ 37. Kb3 Nc4) 31. hxg6 {[%emt 0:00:41]} Bxd2+ {[%emt 0:00:09]} 32. Qxd2 {[%emt 0:00:12]} (32. Kxd2 $142 Nxg6 33. Ke3) 32... Nxg6 {[%emt 0:00:58] Weighted Error Value: White=0.82/Black=0.39} 0-1

[Event "Austrian Championship 2022"]
[Site "Vienna"]
[Date "2022.08.12"]
[Round "1.9"]
[White "Morgunov, Marc"]
[Black "Jethan, Martin"]
[Result "1-0"]
[ECO "B11"]
[WhiteElo "2376"]
[BlackElo "2103"]
[Annotator "TA"]
[PlyCount "59"]
[EventDate "2022.08.12"]
[EventType "swiss"]
[EventCountry "AUT"]
[SourceTitle "playchess.com"]
[Source "ChessBase"]
[SourceQuality "1"]
[TimeControl "40/5400+30:1800+30"]

{[%evp 9,59,35,26,28,20,14,25,12,18,19,133,133,152,60,95,81,133,132,187,205,193,203,186,170,158,152,231,241,408,395,419,402,482,508,723,591,850,852,826,762,764,736,1222,705,689,720,706,714,678,690,679,664]} 1. e4 {[%emt 0:00:05]} c6 {[%emt 0:00:10]} 2. Nc3 {[%emt 0:00:14]} d5 {[%emt 0:00:09]} 3. Nf3 {[%emt 0:00:06]} Nf6 {[%emt 0:00:10]} 4. e5 {[%emt 0:01:00]} Ne4 {[%emt 0:00:14]} 5. Ne2 {[%emt 0:00:36]} Qb6 {[%emt 0:00:46][%csl Ge4][%cal Rb6f2]} 6. d4 $1 {[%emt 0:00:12] B11: Caro-Kann: Two Knights Variation.} e6 {[%emt 0:03:08]} 7. Ng3 $1 {[%emt 0:02:00] 7.Ng3 scores better than 7.Nfg1.} Nxg3 {[%emt 0:07:30]} 8. hxg3 {[%emt 0:00:31] White has an edge.} c5 {[%emt 0:01:16]} 9. c3 {[%emt 0:08:02] Active counter play!} Bd7 {[%emt 0:05:00] [#]} (9... Nc6 $11 {remains equal.}) 10. Ng5 $1 $16 {[%emt 0:07:45] [#]} Be7 $146 {[%emt 0:13:47]} ({Predecessor:} 10... cxd4 11. Qf3 dxc3 12. bxc3 Bc5 13. Qxf7+ Kd8 14. Nxh7 Kc7 15. Bd3 Nc6 16. Rh5 Raf8 17. Nxf8 Rxf8 18. Qxg7 Rxf2 {0-1 (44) Solodovnichenko,Y (2574)-Ankit,R (2451) Lienz 2019}) 11. Nxh7 {[%emt 0:13:02]} ({White should try} 11. Qh5 $16) 11... Rg8 {[%emt 0:01:42]} 12. dxc5 {[%emt 0:04:36]} Bxc5 {[%emt 0:03:37] [#]} (12... Qc7 $142) 13. Qg4 $1 {[%emt 0:01:38] Black must now prevent Nf6+.} Be7 {[%emt 0:10:13] [#] Against Nf6+} (13... Bxf2+ $16 {is a better defense.} 14. Kd1 Nc6) 14. Nf6+ $1 $18 {[%emt 0:09:55][%mdl 512]} Bxf6 {[%emt 0:00:46]} 15. exf6 {[%emt 0:00:04][%cal Og4g7] Qxg7! is the strong threat.} g6 {[%emt 0:00:50]} 16. Rh7 $40 {[%emt 0:03:32][%cal Og4g6][%mdl 128] aiming for Qxg6! White wants a kill.} Nc6 {[%emt 0:01:51]} 17. Qxg6 {[%emt 0:00:36][%cal Rg6g8]} O-O-O {[%emt 0:02:46]} (17... fxg6 $16 {was called for.} 18. f7+ Kf8 19. Bh6+ Rg7 20. Bxg7+ (20. Rxg7 Ke7 $11) 20... Kxf7 21. Bd4+ Kg8 22. Bxb6 Kxh7) 18. Qc2 {[%emt 0:04:15]} ({And not} 18. Qxf7 Ne5 19. Qe7 Ng4 $15) 18... Rg4 $2 {[%emt 0:18:00]} (18... Ne5 19. Be3 Qa5) 19. Be3 {[%emt 0:03:12]} d4 {[%emt 0:04:39]} 20. cxd4 {[%emt 0:01:12]} Qa5+ {[%emt 0:01:35]} 21. Qc3 {[%emt 0:00:51] White is clearly winning.} Qa4 {[%emt 0:05:38]} 22. Be2 {[%emt 0:02:30]} Rg6 {[%emt 0:01:04]} 23. Rxf7 {[%emt 0:01:46][%cal Bh7f7,Bf7g7,Bg7c7][%mdl 32]} Rh8 {[%emt 0:01:17]} 24. Kd2 {[%emt 0:03:01]} Be8 {[%emt 0:07:56]} 25. Rg7 {[%emt 0:00:53]} Kb8 {[%emt 0:00:15]} 26. Qc5 {[%emt 0:04:13]} Rxf6 {[%emt 0:00:58]} 27. b3 {[%emt 0:00:37]} Qb4+ {[%emt 0:00:55]} 28. Qxb4 {[%emt 0:00:04]} Nxb4 {[%emt 0:00:02]} 29. Bf4+ {[%emt 0:00:08]} Ka8 {[%emt 0:00:23]} 30. Rc7 {[%emt 0:28:54] Weighted Error Value: White=0.16 (very precise) /Black=0.46} 1-0

[Event "Austrian Championship 2022"]
[Site "Vienna"]
[Date "2022.08.12"]
[Round "1.9"]
[White "Miazhynski, Yuri"]
[Black "Stadlinger, Lea"]
[Result "1/2-1/2"]
[ECO "C54"]
[WhiteElo "2166"]
[BlackElo "1723"]
[Annotator "TA"]
[PlyCount "60"]
[EventDate "2022.08.12"]
[EventType "swiss"]
[EventCountry "AUT"]
[SourceTitle "playchess.com"]
[Source "ChessBase"]
[SourceQuality "1"]
[TimeControl "40/5400+30:1800+30"]

{[%evp 14,60,20,24,17,-5,27,32,27,23,31,8,34,26,51,34,34,34,34,34,35,35,51,35,35,35,25,0,6,0,0,0,0,0,0,0,0,0,0,0,0,0,0,0,0,0,0,0,0]} 1. e4 {[%emt 0:00:05]} e5 {[%emt 0:00:08]} 2. Nf3 {[%emt 0:00:40]} Nc6 {[%emt 0:00:37]} 3. Bc4 {[%emt 0:00:07]} Bc5 {[%emt 0:00:24]} 4. c3 {[%emt 0:00:23]} Nf6 {[%emt 0:00:14]} 5. d3 {[%emt 0:00:07]} a6 {[%emt 0:01:38]} 6. O-O {[%emt 0:01:37]} d6 {[%emt 0:01:20]} 7. Bb3 {[%emt 0:00:27]} Ba7 {[%emt 0:01:08]} 8. Re1 {[%emt 0:01:24]} O-O {[%emt 0:03:26] C54: Giuoco Piano: 4 c3 Nf6, main lines with 5 d4 and 5 d3.} 9. Be3 {[%emt 0:03:24]} Be6 {[%emt 0:01:57]} 10. Bxe6 {[%emt 0:05:54]} fxe6 {[%emt 0:00:22] White is slightly better.} 11. Bxa7 {[%emt 0:01:02]} Rxa7 {[%emt 0:00:50]} 12. d4 {[%emt 0:01:05]} exd4 {[%emt 0:06:00]} 13. cxd4 {[%emt 0:02:09]} d5 {[%emt 0:05:12]} 14. Nc3 {[%emt 0:06:12]} dxe4 {[%emt 0:04:00]} 15. Nxe4 {[%emt 0:00:16]} Nxe4 {[%emt 0:04:25]} 16. Rxe4 {[%emt 0:02:18]} Qd5 {[%emt 0:00:45]} 17. Qe2 {[%emt 0:03:38]} Raa8 {[%emt 0:06:10][%cal Ba7a8,Ba8f8,Bf8f4][%mdl 32] [#]} 18. b3 $146 {[%emt 0:06:14]} ({Predecessor:} 18. Qe3 Rad8 19. b3 Rf6 20. h3 h6 21. Rc1 Qd6 22. Rc4 Rdf8 23. Rc2 Ne7 24. Ne5 {1-0 (49) Belotti,B (2417)-Di Fonzo,V (2217) Bratto 2000}) 18... Rf6 {[%emt 0:05:09]} 19. Re1 {[%emt 0:04:05]} Raf8 {[%emt 0:07:46]} 20. Qc4 {[%emt 0:11:34]} h6 {[%emt 0:11:06] The position is equal.} 21. h3 {[%emt 0:11:03]} Rf4 {[%emt 0:05:41]} 22. Rxf4 {[%emt 0:18:48]} Rxf4 {[%emt 0:06:58]} 23. Qxd5 {[%emt 0:00:21]} exd5 $11 {[%emt 0:00:11][%mdl 4096] Endgame KRN-KRN} 24. Re8+ {[%emt 0:00:12]} Rf8 {[%emt 0:01:32]} 25. Re3 {[%emt 0:00:38]} Rf4 {[%emt 0:00:23]} 26. Re8+ {[%emt 0:00:04]} Rf8 {[%emt 0:00:04]} 27. Re3 {[%emt 0:00:05]} Rf4 {[%emt 0:00:04]} 28. Re8+ {[%emt 0:00:06]} Rf8 {[%emt 0:00:13]} 29. Re3 {[%emt 0:00:03]} Rf4 {[%emt 0:00:06]} 30. Re8+ {[%emt 0:00:05]} Rf8 {[%emt 0:00:04] Weighted Error Value: White=0.04 (flawless) /Black=0.05 (flawless)} 1/2-1/2

[Event "Austrian Championship 2022"]
[Site "Vienna"]
[Date "2022.08.12"]
[Round "1.10"]
[White "Mayrhuber, Nikola"]
[Black "Schreiner, Peter"]
[Result "1/2-1/2"]
[ECO "D80"]
[WhiteElo "2141"]
[BlackElo "2416"]
[Annotator "TA"]
[PlyCount "96"]
[EventDate "2022.08.12"]
[EventType "swiss"]
[EventCountry "AUT"]
[SourceTitle "playchess.com"]
[Source "ChessBase"]
[SourceQuality "1"]
[TimeControl "40/5400+30:1800+30"]

{[%evp 9,96,16,8,0,0,0,0,-14,0,0,0,0,7,-27,-23,-25,-19,-15,-20,-27,-25,-20,-22,-24,-22,-24,-17,-18,-18,-25,-10,-16,-15,-29,-19,-19,-24,-29,-27,-37,-8,-9,0,0,0,0,0,0,0,0,0,-5,-4,-19,-18,-20,0,0,0,0,0,0,0,0,0,0,0,0,0,0,0,0,0,0,0,0,0,0,0,0,0,0,0,0,0,0,0,0,0]} 1. d4 {[%emt 0:00:03]} Nf6 {[%emt 0:00:11]} 2. c4 {[%emt 0:00:05]} g6 {[%emt 0:02:11]} 3. Nc3 {[%emt 0:00:06]} d5 {[%emt 0:00:25]} 4. e3 {[%emt 0:00:50]} Bg7 {[%emt 0:02:54]} 5. cxd5 {[%emt 0:00:05]} Nxd5 {[%emt 0:00:05]} 6. Nxd5 {[%emt 0:00:05] D80: Grünfeld: Unusual White 4th moves and 4 Bg5.} Qxd5 {[%emt 0:00:06]} 7. Ne2 {[%emt 0:00:04]} O-O {[%emt 0:03:33]} 8. Nc3 {[%emt 0:00:05]} Qd8 {[%emt 0:08:20][%cal Oc7c5]} 9. Be2 {[%emt 0:00:32]} c6 {[%emt 0:02:02]} 10. O-O {[%emt 0:03:19] [#]} a5 $146 {[%emt 0:02:26]} ({Predecessor:} 10... e5 11. dxe5 Bxe5 12. e4 Qxd1 13. Rxd1 Be6 14. f4 Bc7 15. Be3 Nd7 16. Rac1 Bb6 {½-½ (37) Gelfand,B (2750)-Aronian,L (2782) Nice 2010}) 11. b3 {[%emt 0:03:36]} c5 $1 {[%emt 0:03:42]} 12. Nb5 {[%emt 0:02:23]} Nc6 {[%emt 0:02:57][%cal Rc5d4]} 13. Bb2 {[%emt 0:00:37]} cxd4 {[%emt 0:00:29]} 14. Nxd4 {[%emt 0:01:42]} (14. Bxd4 {with more complications.} Nxd4 15. Nxd4 Bd7 16. a4) 14... Nxd4 {[%emt 0:01:05]} 15. Bxd4 {[%emt 0:00:45]} Bxd4 {[%emt 0:00:39]} 16. Qxd4 {[%emt 0:00:21]} Qxd4 {[%emt 0:00:15]} 17. exd4 {[%emt 0:00:07]} Rd8 {[%emt 0:06:50]} 18. Rfd1 {[%emt 0:03:17]} Be6 {[%emt 0:10:20]} 19. Rac1 {[%emt 0:17:07]} Bd5 {[%emt 0:10:25]} 20. Bc4 {[%emt 0:04:51]} a4 {[%emt 0:05:47]} 21. h4 {[%emt 0:13:42]} e6 {[%emt 0:05:00]} 22. Bxd5 {[%emt 0:08:27]} Rxd5 $11 {[%emt 0:00:10][%mdl 4096] Endgame KRR-KRR} 23. Rc5 {[%emt 0:00:11]} axb3 {[%emt 0:03:04]} 24. axb3 {[%emt 0:01:51]} Rd7 {[%emt 0:06:51]} 25. Rb5 {[%emt 0:02:55] The position is equal.} Ra6 {[%emt 0:11:24]} 26. g3 {[%emt 0:13:01]} Kg7 {[%emt 0:04:49]} 27. Kg2 {[%emt 0:00:40]} Rad6 {[%emt 0:02:57]} 28. Kf3 {[%emt 0:01:48]} Rd5 {[%emt 0:01:43]} 29. Rxd5 {[%emt 0:03:47]} Rxd5 {[%emt 0:00:02] KR-KR} 30. Ke3 {[%emt 0:00:20]} Rb5 {[%emt 0:00:45]} 31. Rd3 {[%emt 0:00:38]} h6 {[%emt 0:02:00]} 32. Kd2 {[%emt 0:04:50]} g5 {[%emt 0:00:20]} 33. hxg5 {[%emt 0:00:06]} hxg5 {[%emt 0:00:04]} 34. g4 {[%emt 0:01:50]} Ra5 {[%emt 0:01:36]} 35. Kc3 {[%emt 0:01:58]} Kf6 {[%emt 0:00:21]} 36. f3 {[%emt 0:03:10]} Ke7 {[%emt 0:00:31]} 37. Kb4 {[%emt 0:00:37]} Rd5 {[%emt 0:00:36]} 38. Kc4 {[%emt 0:01:18]} Kd6 {[%emt 0:01:10]} 39. Rd2 {[%emt 0:02:07]} Ra5 {[%emt 0:00:10]} 40. Rh2 {[%emt 0:02:18]} Ra1 {[%emt 0:00:33]} 41. Rh5 {[%emt 0:33:46]} Rf1 {[%emt 0:05:16]} 42. Rxg5 {[%emt 0:00:00]} Rxf3 {[%emt 0:00:11]} 43. Rb5 {[%emt 0:00:00]} Rf4 {[%emt 0:05:50]} 44. g5 {[%emt 0:00:00]} Kc7 {[%emt 0:04:14]} 45. Rc5+ {[%emt 0:00:00]} Kb8 {[%emt 0:01:16]} 46. Re5 {[%emt 0:00:00]} Kc7 {[%emt 0:05:25]} 47. Rc5+ {[%emt 0:00:00]} Kd7 {[%emt 0:03:53]} 48. Rb5 {[%emt 0:00:00]} Kc7 {[%emt 0:05:33] Weighted Error Value: White=0.03 (flawless) /Black=0.03 (flawless)} 1/2-1/2